[Event "Titled Tuesday Blitz February 21 Early 2023"]
[White "Kilic, Eray"]
[Black "Paravyan, David"]
[WhiteFideId "44517173"]
[BlackFideId "4194985"]
[WhiteElo "2414"]
[BlackElo "2601"]
[Result "0-1"]
[Round "08"]
[TimeControl "180+2"]
[Date "2023.02.21"]
[WhiteClock "0:00:02"]
[BlackClock "0:00:08"]

1. e4 {[%clk 0:03:00]}  e5 {[%clk 0:02:59]} 2. Nf3 {[%clk 0:03:00]}  Nf6 {[%clk 0:03:00]} 3. Nxe5 {[%clk 0:02:59]}  d6 {[%clk 0:03:00]} 4. Nf3 {[%clk 0:02:59]}  Nxe4 {[%clk 0:03:01]} 5. c4 {[%clk 0:03:00]}  Nc6 {[%clk 0:03:01]} 6. Nc3 {[%clk 0:03:00]}  Nxc3 {[%clk 0:03:01]} 7. dxc3 {[%clk 0:03:00]}  g6 {[%clk 0:03:01]} 8. Bd3 {[%clk 0:03:00]}  Qe7+ {[%clk 0:02:48]} 9. Be3 {[%clk 0:02:59]}  Bh6 {[%clk 0:02:48]} 10. O-O {[%clk 0:02:55]}  Bxe3 {[%clk 0:02:48]} 11. Re1 {[%clk 0:02:56]}  Bxf2+ {[%clk 0:02:45]} 12. Kxf2 {[%clk 0:02:57]}  Ne5 {[%clk 0:02:45]} 13. Qe2 {[%clk 0:02:35]}  Bg4 {[%clk 0:02:24]} 14. Be4 {[%clk 0:02:30]}  O-O {[%clk 0:02:21]} 15. Kg1 {[%clk 0:01:57]}  Rfe8 {[%clk 0:02:09]} 16. Qf1 {[%clk 0:01:44]}  Bxf3 {[%clk 0:01:48]} 17. gxf3 {[%clk 0:01:45]}  Qg5+ {[%clk 0:01:48]} 18. Kh1 {[%clk 0:01:45]}  Qf4 {[%clk 0:01:44]} 19. Rad1 {[%clk 0:01:40]}  c6 {[%clk 0:01:30]} 20. Rd4 {[%clk 0:01:18]}  Nxf3 {[%clk 0:01:25]} 21. Re2 {[%clk 0:01:02]}  c5 {[%clk 0:00:55]} 22. Rd3 {[%clk 0:00:14]}  Rxe4 {[%clk 0:00:45]} 23. Rxf3 {[%clk 0:00:14]}  Qe5 {[%clk 0:00:46]} 24. Rff2 {[%clk 0:00:14]}  Re8 {[%clk 0:00:44]} 25. Rxe4 {[%clk 0:00:14]}  Qxe4+ {[%clk 0:00:44]} 26. Kg1 {[%clk 0:00:15]}  f5 {[%clk 0:00:41]} 27. Rf4 {[%clk 0:00:13]}  Qe3+ {[%clk 0:00:39]} 28. Rf2 {[%clk 0:00:14]}  Kg7 {[%clk 0:00:39]} 29. Qg2 {[%clk 0:00:11]}  Qe4 {[%clk 0:00:37]} 30. Qg5 {[%clk 0:00:10]}  Qg4+ {[%clk 0:00:32]} 31. Qxg4 {[%clk 0:00:10]}  Re1+ {[%clk 0:00:28]} 32. Kg2 {[%clk 0:00:10]}  fxg4 {[%clk 0:00:28]} 33. Rd2 {[%clk 0:00:11]}  h5 {[%clk 0:00:24]} 34. b4 {[%clk 0:00:09]}  Kh6 {[%clk 0:00:15]} 35. Rxd6 {[%clk 0:00:09]}  Re2+ {[%clk 0:00:16]} 36. Kg3 {[%clk 0:00:09]}  Re3+ {[%clk 0:00:16]} 37. Kf2 {[%clk 0:00:09]}  Rxc3 {[%clk 0:00:16]} 38. bxc5 {[%clk 0:00:09]}  Rxc4 {[%clk 0:00:17]} 39. Rd7 {[%clk 0:00:10]}  Rxc5 {[%clk 0:00:17]} 40. Rxb7 {[%clk 0:00:10]}  Rc2+ {[%clk 0:00:18]} 41. Kg3 {[%clk 0:00:11]}  Rxa2 {[%clk 0:00:18]} 42. Rb8 {[%clk 0:00:09]}  a5 {[%clk 0:00:18]} 43. Rb5 {[%clk 0:00:08]}  a4 {[%clk 0:00:18]} 44. Ra5 {[%clk 0:00:09]}  a3 {[%clk 0:00:19]} 45. h3 {[%clk 0:00:09]}  gxh3 {[%clk 0:00:18]} 46. Kxh3 {[%clk 0:00:10]}  Ra1 {[%clk 0:00:19]} 47. Kh2 {[%clk 0:00:11]}  a2 {[%clk 0:00:19]} 48. Kg2 {[%clk 0:00:11]}  h4 {[%clk 0:00:19]} 49. Kh2 {[%clk 0:00:11]}  g5 {[%clk 0:00:19]} 50. Ra4 {[%clk 0:00:11]}  Kh5 {[%clk 0:00:20]} 51. Kg2 {[%clk 0:00:12]}  h3+ {[%clk 0:00:18]} 52. Kh2 {[%clk 0:00:12]}  g4 {[%clk 0:00:19]} 53. Ra3 {[%clk 0:00:08]}  Kg5 {[%clk 0:00:12]} 54. Ra4 {[%clk 0:00:09]}  g3+ {[%clk 0:00:08]} 55. Kxh3 {[%clk 0:00:02]}  Rh1+ {[%clk 0:00:08]} 56. Kg2 {[%clk 0:00:02]}  a1=Q {[%clk 0:00:08]} 57. Rg4+ {[%clk 0:00:03]}  Kf6 {[%clk 0:00:08]} 58. Rf4+ {[%clk 0:00:04]}  Ke7 {[%clk 0:00:08]} 59. Re4+ {[%clk 0:00:04]}  Kd6 {[%clk 0:00:09]} 60. Kf3 {[%clk 0:00:02]}  Qf1+ {[%clk 0:00:08]} 61. Kg4 {[%clk 0:00:02]}  g2 {[%clk 0:00:08]} 0-1


[Site "https://www.chess.com"]

[Event "Titled Tuesday Blitz February 21 Early 2023"]
[White "Hakobyan, Aram"]
[Black "Chigaev, Maksim"]
[WhiteFideId "13306677"]
[BlackFideId "4108116"]
[WhiteElo "2608"]
[BlackElo "2628"]
[Result "1-0"]
[Round "08"]
[TimeControl "180+2"]
[Date "2023.02.21"]
[WhiteClock "0:00:37"]
[BlackClock "0:00:13"]

1. e4 {[%clk 0:03:00]}  c5 {[%clk 0:03:00]} 2. Nf3 {[%clk 0:03:01]}  e6 {[%clk 0:03:00]} 3. g3 {[%clk 0:02:58]}  Nc6 {[%clk 0:03:00]} 4. Bg2 {[%clk 0:02:57]}  Nf6 {[%clk 0:03:00]} 5. d3 {[%clk 0:02:49]}  d6 {[%clk 0:02:59]} 6. O-O {[%clk 0:02:49]}  Be7 {[%clk 0:03:00]} 7. Re1 {[%clk 0:02:47]}  O-O {[%clk 0:03:00]} 8. c3 {[%clk 0:02:47]}  e5 {[%clk 0:02:56]} 9. Nbd2 {[%clk 0:02:40]}  h6 {[%clk 0:02:51]} 10. a4 {[%clk 0:02:39]}  Re8 {[%clk 0:02:50]} 11. Nf1 {[%clk 0:02:37]}  Bf8 {[%clk 0:02:50]} 12. Ne3 {[%clk 0:02:32]}  g6 {[%clk 0:02:50]} 13. Rb1 {[%clk 0:02:31]}  Bg7 {[%clk 0:02:47]} 14. b4 {[%clk 0:02:28]}  b6 {[%clk 0:02:47]} 15. b5 {[%clk 0:02:28]}  Na5 {[%clk 0:02:37]} 16. c4 {[%clk 0:02:28]}  Rf8 {[%clk 0:02:34]} 17. Bd2 {[%clk 0:02:27]}  Be6 {[%clk 0:02:31]} 18. Bc3 {[%clk 0:02:26]}  Nh7 {[%clk 0:02:19]} 19. Nd2 {[%clk 0:02:20]}  Nb7 {[%clk 0:02:17]} 20. Qc2 {[%clk 0:02:17]}  Ng5 {[%clk 0:01:07]} 21. Rf1 {[%clk 0:02:15]}  Nh3+ {[%clk 0:01:04]} 22. Kh1 {[%clk 0:02:15]}  Qg5 {[%clk 0:01:05]} 23. Rbe1 {[%clk 0:02:11]}  Rae8 {[%clk 0:01:02]} 24. Qb2 {[%clk 0:02:06]}  Qh5 {[%clk 0:00:36]} 25. f4 {[%clk 0:01:58]}  exf4 {[%clk 0:00:33]} 26. Bxg7 {[%clk 0:01:12]}  fxe3 {[%clk 0:00:25]} 27. Rxe3 {[%clk 0:01:06]}  Ng5 {[%clk 0:00:22]} 28. Nf3 {[%clk 0:00:52]}  Nh7 {[%clk 0:00:15]} 29. Bxf8 {[%clk 0:00:51]}  Rxf8 {[%clk 0:00:16]} 30. Nh4 {[%clk 0:00:42]}  Qe5 {[%clk 0:00:14]} 31. Qf2 {[%clk 0:00:38]}  Ng5 {[%clk 0:00:13]} 32. Nxg6 {[%clk 0:00:37]} 1-0


[Site "https://www.chess.com"]

[Event "Titled Tuesday Blitz February 21 Early 2023"]
[White "Korobov, Anton"]
[Black "Livaic, Leon"]
[WhiteFideId "14105730"]
[BlackFideId "14531534"]
[WhiteElo "2664"]
[BlackElo "2579"]
[Result "1/2-1/2"]
[Round "08"]
[TimeControl "180+2"]
[Date "2023.02.21"]
[WhiteClock "0:00:12"]
[BlackClock "0:00:07"]

1. c4 {[%clk 0:03:00]}  e6 {[%clk 0:02:59]} 2. Nc3 {[%clk 0:03:00]}  d5 {[%clk 0:03:00]} 3. d4 {[%clk 0:03:00]}  Nf6 {[%clk 0:03:00]} 4. cxd5 {[%clk 0:03:00]}  exd5 {[%clk 0:03:01]} 5. Bg5 {[%clk 0:02:59]}  Be7 {[%clk 0:03:02]} 6. e3 {[%clk 0:03:00]}  O-O {[%clk 0:03:02]} 7. Bd3 {[%clk 0:03:00]}  Re8 {[%clk 0:03:03]} 8. Qc2 {[%clk 0:02:59]}  h6 {[%clk 0:03:03]} 9. Bh4 {[%clk 0:02:58]}  c5 {[%clk 0:03:03]} 10. Nge2 {[%clk 0:02:45]}  Nc6 {[%clk 0:03:03]} 11. a3 {[%clk 0:02:40]}  cxd4 {[%clk 0:03:01]} 12. exd4 {[%clk 0:02:41]}  Ne4 {[%clk 0:02:27]} 13. Bxe7 {[%clk 0:02:37]}  Rxe7 {[%clk 0:02:28]} 14. O-O {[%clk 0:02:29]}  Bf5 {[%clk 0:02:25]} 15. Bxe4 {[%clk 0:02:13]}  Bxe4 {[%clk 0:02:21]} 16. Qd2 {[%clk 0:01:51]}  Qd6 {[%clk 0:02:00]} 17. Rad1 {[%clk 0:01:47]}  Rae8 {[%clk 0:01:57]} 18. f3 {[%clk 0:01:43]}  Bg6 {[%clk 0:01:54]} 19. Nf4 {[%clk 0:01:43]}  Rd7 {[%clk 0:01:43]} 20. Ncxd5 {[%clk 0:01:35]}  Red8 {[%clk 0:01:35]} 21. Rfe1 {[%clk 0:01:32]}  Qf8 {[%clk 0:01:25]} 22. Nxg6 {[%clk 0:01:13]}  fxg6 {[%clk 0:01:26]} 23. Nc3 {[%clk 0:01:13]}  Nxd4 {[%clk 0:01:21]} 24. Qf2 {[%clk 0:01:12]}  Kh7 {[%clk 0:01:15]} 25. Kh1 {[%clk 0:01:07]}  Qf5 {[%clk 0:01:10]} 26. Ne4 {[%clk 0:00:58]}  Nc6 {[%clk 0:00:56]} 27. Rxd7 {[%clk 0:00:56]}  Rxd7 {[%clk 0:00:57]} 28. h3 {[%clk 0:00:56]}  Ne5 {[%clk 0:00:42]} 29. Qe3 {[%clk 0:00:41]}  Rd3 {[%clk 0:00:33]} 30. Ng5+ {[%clk 0:00:31]}  Qxg5 {[%clk 0:00:18]} 31. Qxg5 {[%clk 0:00:31]}  hxg5 {[%clk 0:00:19]} 32. Rxe5 {[%clk 0:00:31]}  Rd2 {[%clk 0:00:19]} 33. Rb5 {[%clk 0:00:29]}  b6 {[%clk 0:00:19]} 34. a4 {[%clk 0:00:28]}  Kh6 {[%clk 0:00:19]} 35. Kh2 {[%clk 0:00:26]}  Rd4 {[%clk 0:00:19]} 36. b3 {[%clk 0:00:25]}  Rd3 {[%clk 0:00:18]} 37. Kg3 {[%clk 0:00:26]}  Kh7 {[%clk 0:00:16]} 38. b4 {[%clk 0:00:19]}  Rb3 {[%clk 0:00:10]} 39. Kg4 {[%clk 0:00:15]}  Kh6 {[%clk 0:00:09]} 40. Kg3 {[%clk 0:00:15]}  Rb2 {[%clk 0:00:07]} 41. a5 {[%clk 0:00:12]}  bxa5 {[%clk 0:00:07]} 42. Rxa5 {[%clk 0:00:13]}  Rxb4 {[%clk 0:00:07]} 43. Rxa7 {[%clk 0:00:13]}  Kh7 {[%clk 0:00:08]} 44. Re7 {[%clk 0:00:13]}  Ra4 {[%clk 0:00:08]} 45. Re4 {[%clk 0:00:12]}  Ra5 {[%clk 0:00:08]} 46. Kg4 {[%clk 0:00:13]}  Kh6 {[%clk 0:00:09]} 47. Re8 {[%clk 0:00:12]}  Kh7 {[%clk 0:00:09]} 48. Re4 {[%clk 0:00:11]}  Ra2 {[%clk 0:00:09]} 49. Kg3 {[%clk 0:00:11]}  Ra5 {[%clk 0:00:09]} 50. Kf2 {[%clk 0:00:10]}  Ra2+ {[%clk 0:00:09]} 51. Re2 {[%clk 0:00:11]}  Ra5 {[%clk 0:00:08]} 52. Ke3 {[%clk 0:00:11]}  Ra6 {[%clk 0:00:07]} 53. Rd2 {[%clk 0:00:11]}  Ra3+ {[%clk 0:00:07]} 54. Rd3 {[%clk 0:00:11]}  Ra2 {[%clk 0:00:07]} 55. g4 {[%clk 0:00:11]}  Rh2 {[%clk 0:00:05]} 56. Rd5 {[%clk 0:00:11]}  Rxh3 {[%clk 0:00:05]} 57. Rxg5 {[%clk 0:00:11]}  Rh1 {[%clk 0:00:05]} 58. Ra5 {[%clk 0:00:10]}  Re1+ {[%clk 0:00:06]} 59. Kf4 {[%clk 0:00:11]}  Rb1 {[%clk 0:00:07]} 60. Kg5 {[%clk 0:00:10]}  Rb3 {[%clk 0:00:07]} 61. f4 {[%clk 0:00:11]}  Rb7 {[%clk 0:00:06]} 62. Re5 {[%clk 0:00:11]}  Ra7 {[%clk 0:00:06]} 63. Re6 {[%clk 0:00:11]}  Ra5+ {[%clk 0:00:06]} 64. Kh4 {[%clk 0:00:11]}  Ra4 {[%clk 0:00:05]} 65. Kg5 {[%clk 0:00:11]}  Ra5+ {[%clk 0:00:06]} 66. Kh4 {[%clk 0:00:12]}  Ra4 {[%clk 0:00:07]} 67. Kg5 {[%clk 0:00:12]}  Ra5+ {[%clk 0:00:07]} 1/2-1/2


[Site "https://www.chess.com"]

[Event "Titled Tuesday Blitz February 21 Early 2023"]
[White "Rakhmanov, Aleksandr"]
[Black "Yilmaz, Mustafa"]
[WhiteFideId "4173708"]
[BlackFideId "6302718"]
[WhiteElo "2632"]
[BlackElo "2641"]
[Result "1/2-1/2"]
[Round "08"]
[TimeControl "180+2"]
[Date "2023.02.21"]
[WhiteClock "0:00:06"]
[BlackClock "0:00:01"]

1. d4 {[%clk 0:02:58]}  Nf6 {[%clk 0:02:59]} 2. c4 {[%clk 0:02:59]}  e6 {[%clk 0:03:00]} 3. Nc3 {[%clk 0:03:00]}  Bb4 {[%clk 0:02:56]} 4. Nf3 {[%clk 0:02:58]}  d5 {[%clk 0:02:55]} 5. e3 {[%clk 0:02:53]}  O-O {[%clk 0:02:54]} 6. Bd2 {[%clk 0:02:53]}  b6 {[%clk 0:02:54]} 7. cxd5 {[%clk 0:02:52]}  exd5 {[%clk 0:02:54]} 8. Rc1 {[%clk 0:02:52]}  Bb7 {[%clk 0:02:52]} 9. Bd3 {[%clk 0:02:53]}  Be7 {[%clk 0:02:50]} 10. O-O {[%clk 0:02:50]}  c5 {[%clk 0:02:50]} 11. dxc5 {[%clk 0:02:51]}  bxc5 {[%clk 0:02:50]} 12. Re1 {[%clk 0:02:52]}  Re8 {[%clk 0:02:35]} 13. Bb1 {[%clk 0:02:39]}  Na6 {[%clk 0:02:08]} 14. e4 {[%clk 0:02:31]}  dxe4 {[%clk 0:01:31]} 15. Nxe4 {[%clk 0:02:32]}  Nxe4 {[%clk 0:01:21]} 16. Bxe4 {[%clk 0:02:33]}  Bxe4 {[%clk 0:01:21]} 17. Rxe4 {[%clk 0:02:34]}  Bf6 {[%clk 0:01:19]} 18. Rxe8+ {[%clk 0:02:26]}  Qxe8 {[%clk 0:01:19]} 19. b3 {[%clk 0:02:25]}  Rd8 {[%clk 0:01:12]} 20. Qc2 {[%clk 0:02:14]}  Nb4 {[%clk 0:01:08]} 21. Bxb4 {[%clk 0:02:10]}  cxb4 {[%clk 0:01:09]} 22. Re1 {[%clk 0:02:08]}  Qd7 {[%clk 0:01:01]} 23. g3 {[%clk 0:02:00]}  Bc3 {[%clk 0:00:51]} 24. Re4 {[%clk 0:01:41]}  g6 {[%clk 0:00:38]} 25. Kg2 {[%clk 0:01:34]}  Qd1 {[%clk 0:00:16]} 26. Qxd1 {[%clk 0:01:10]}  Rxd1 {[%clk 0:00:17]} 27. Re8+ {[%clk 0:00:58]}  Kg7 {[%clk 0:00:17]} 28. Re7 {[%clk 0:00:59]}  a5 {[%clk 0:00:16]} 29. Ra7 {[%clk 0:00:59]}  Rd5 {[%clk 0:00:16]} 30. h4 {[%clk 0:00:54]}  h6 {[%clk 0:00:16]} 31. Kf1 {[%clk 0:00:53]}  g5 {[%clk 0:00:15]} 32. hxg5 {[%clk 0:00:52]}  hxg5 {[%clk 0:00:16]} 33. Ra6 {[%clk 0:00:42]}  g4 {[%clk 0:00:15]} 34. Nh4 {[%clk 0:00:28]}  f5 {[%clk 0:00:14]} 35. Ng6 {[%clk 0:00:20]}  Rd1+ {[%clk 0:00:13]} 36. Kg2 {[%clk 0:00:13]}  Rd2 {[%clk 0:00:14]} 37. Nh4 {[%clk 0:00:13]}  Rxa2 {[%clk 0:00:12]} 38. Nxf5+ {[%clk 0:00:12]}  Kf7 {[%clk 0:00:11]} 39. Ne3 {[%clk 0:00:12]}  a4 {[%clk 0:00:09]} 40. bxa4 {[%clk 0:00:10]}  b3 {[%clk 0:00:10]} 41. Rb6 {[%clk 0:00:08]}  b2 {[%clk 0:00:10]} 42. Nd1 {[%clk 0:00:04]}  Bd4 {[%clk 0:00:09]} 43. Rb4 {[%clk 0:00:05]}  Rxa4 {[%clk 0:00:04]} 44. Rb7+ {[%clk 0:00:04]}  Ke6 {[%clk 0:00:04]} 45. Nxb2 {[%clk 0:00:05]}  Ra2 {[%clk 0:00:03]} 46. Nd3 {[%clk 0:00:05]}  Kd5 {[%clk 0:00:04]} 47. Rd7+ {[%clk 0:00:04]}  Ke4 {[%clk 0:00:04]} 48. Nf4 {[%clk 0:00:03]}  Rxf2+ {[%clk 0:00:04]} 49. Kh1 {[%clk 0:00:04]}  Rf1+ {[%clk 0:00:03]} 50. Kg2 {[%clk 0:00:04]}  Rf2+ {[%clk 0:00:04]} 51. Kh1 {[%clk 0:00:04]}  Be3 {[%clk 0:00:04]} 52. Ng2 {[%clk 0:00:03]}  Rf1+ {[%clk 0:00:04]} 53. Kh2 {[%clk 0:00:04]}  Bg1+ {[%clk 0:00:04]} 54. Kh1 {[%clk 0:00:04]}  Bd4+ {[%clk 0:00:03]} 55. Kh2 {[%clk 0:00:05]}  Bg1+ {[%clk 0:00:03]} 56. Kh1 {[%clk 0:00:05]}  Bc5+ {[%clk 0:00:04]} 57. Kh2 {[%clk 0:00:06]}  Bg1+ {[%clk 0:00:01]} 1/2-1/2


[Site "https://www.chess.com"]

[Event "Titled Tuesday Blitz February 21 Early 2023"]
[White "Shimanov, Aleksandr"]
[Black "Fier, Alexandr"]
[WhiteFideId "4198603"]
[BlackFideId "2107139"]
[WhiteElo "2581"]
[BlackElo "2589"]
[Result "1-0"]
[Round "08"]
[TimeControl "180+2"]
[Date "2023.02.21"]
[WhiteClock "0:00:06"]
[BlackClock "0:00:44"]

1. e4 {[%clk 0:03:00]}  c5 {[%clk 0:02:59]} 2. d4 {[%clk 0:02:57]}  cxd4 {[%clk 0:02:59]} 3. Qxd4 {[%clk 0:02:58]}  Nc6 {[%clk 0:02:58]} 4. Qd3 {[%clk 0:02:57]}  g6 {[%clk 0:02:58]} 5. Nc3 {[%clk 0:02:57]}  Bg7 {[%clk 0:02:59]} 6. Nf3 {[%clk 0:02:58]}  d6 {[%clk 0:02:59]} 7. Be2 {[%clk 0:02:58]}  Nf6 {[%clk 0:02:59]} 8. O-O {[%clk 0:02:58]}  O-O {[%clk 0:02:59]} 9. Nd5 {[%clk 0:02:58]}  Nd7 {[%clk 0:02:56]} 10. c3 {[%clk 0:02:58]}  Nc5 {[%clk 0:02:53]} 11. Qc2 {[%clk 0:02:58]}  Bg4 {[%clk 0:02:53]} 12. Bg5 {[%clk 0:02:53]}  Bxf3 {[%clk 0:02:52]} 13. Bxf3 {[%clk 0:02:53]}  Rc8 {[%clk 0:02:51]} 14. Rad1 {[%clk 0:02:50]}  h6 {[%clk 0:02:50]} 15. Be3 {[%clk 0:02:49]}  Ne6 {[%clk 0:02:49]} 16. Qd2 {[%clk 0:02:48]}  a6 {[%clk 0:02:42]} 17. Bxh6 {[%clk 0:02:43]}  Ne5 {[%clk 0:02:39]} 18. Be2 {[%clk 0:02:42]}  b5 {[%clk 0:02:37]} 19. Bxg7 {[%clk 0:02:42]}  Kxg7 {[%clk 0:02:37]} 20. f4 {[%clk 0:02:42]}  Nc4 {[%clk 0:02:37]} 21. Bxc4 {[%clk 0:02:42]}  Rxc4 {[%clk 0:02:38]} 22. f5 {[%clk 0:02:42]}  Nc5 {[%clk 0:02:37]} 23. b3 {[%clk 0:01:25]}  Rxe4 {[%clk 0:02:36]} 24. f6+ {[%clk 0:01:26]}  exf6 {[%clk 0:02:33]} 25. Nxf6 {[%clk 0:01:27]}  Re5 {[%clk 0:02:33]} 26. Qxd6 {[%clk 0:01:16]}  Qxd6 {[%clk 0:02:33]} 27. Rxd6 {[%clk 0:01:17]}  Re3 {[%clk 0:02:25]} 28. Rc6 {[%clk 0:01:02]}  Ne6 {[%clk 0:02:22]} 29. h3 {[%clk 0:00:57]}  Rd8 {[%clk 0:02:17]} 30. Rxa6 {[%clk 0:00:46]}  Rd2 {[%clk 0:02:16]} 31. Ng4 {[%clk 0:00:45]}  Ree2 {[%clk 0:01:40]} 32. Rf2 {[%clk 0:00:41]}  f5 {[%clk 0:01:41]} 33. Ra7+ {[%clk 0:00:29]}  Kf8 {[%clk 0:01:41]} 34. Rxe2 {[%clk 0:00:27]}  Rxe2 {[%clk 0:01:42]} 35. Nf6 {[%clk 0:00:26]}  Nf4 {[%clk 0:01:41]} 36. Kf1 {[%clk 0:00:23]}  Rc2 {[%clk 0:01:40]} 37. Nd7+ {[%clk 0:00:15]}  Ke8 {[%clk 0:01:40]} 38. Ne5 {[%clk 0:00:15]}  Nxg2 {[%clk 0:01:38]} 39. Nxg6 {[%clk 0:00:14]}  f4 {[%clk 0:01:36]} 40. Re7+ {[%clk 0:00:13]}  Kd8 {[%clk 0:01:36]} 41. Re4 {[%clk 0:00:10]}  f3 {[%clk 0:01:31]} 42. Ne5 {[%clk 0:00:06]}  Rxc3 {[%clk 0:01:22]} 43. Kf2 {[%clk 0:00:06]}  Rc2+ {[%clk 0:01:16]} 44. Kxf3 {[%clk 0:00:06]}  Rxa2 {[%clk 0:01:17]} 45. Rb4 {[%clk 0:00:06]}  Ne1+ {[%clk 0:01:16]} 46. Kg4 {[%clk 0:00:05]}  Rg2+ {[%clk 0:01:16]} 47. Kf5 {[%clk 0:00:06]}  Kc7 {[%clk 0:01:06]} 48. Rxb5 {[%clk 0:00:05]}  Rg3 {[%clk 0:01:06]} 49. h4 {[%clk 0:00:04]}  Rh3 {[%clk 0:01:06]} 50. Kg4 {[%clk 0:00:04]}  Rh1 {[%clk 0:01:07]} 51. Nf3 {[%clk 0:00:04]}  Ng2 {[%clk 0:01:06]} 52. Rc5+ {[%clk 0:00:03]}  Kd6 {[%clk 0:01:05]} 53. Rc3 {[%clk 0:00:03]}  Ke7 {[%clk 0:00:49]} 54. Kg3 {[%clk 0:00:03]}  Ne1 {[%clk 0:00:49]} 55. Nxe1 {[%clk 0:00:03]}  Rxe1 {[%clk 0:00:50]} 56. Rf3 {[%clk 0:00:04]}  Rg1+ {[%clk 0:00:48]} 57. Kf4 {[%clk 0:00:04]}  Kf6 {[%clk 0:00:48]} 58. Ke4+ {[%clk 0:00:04]}  Ke6 {[%clk 0:00:47]} 59. Rh3 {[%clk 0:00:04]}  Rg4+ {[%clk 0:00:44]} 60. Kd3 {[%clk 0:00:04]}  Kf6 {[%clk 0:00:44]} 61. h5 {[%clk 0:00:04]}  Kg7 {[%clk 0:00:44]} 62. Kc3 {[%clk 0:00:05]}  Re4 {[%clk 0:00:41]} 63. b4 {[%clk 0:00:05]}  Re8 {[%clk 0:00:42]} 64. h6+ {[%clk 0:00:05]}  Kh7 {[%clk 0:00:42]} 65. b5 {[%clk 0:00:06]}  Rc8+ {[%clk 0:00:42]} 66. Kb4 {[%clk 0:00:06]}  Rc1 {[%clk 0:00:43]} 67. b6 {[%clk 0:00:06]}  Rb1+ {[%clk 0:00:43]} 68. Rb3 {[%clk 0:00:06]}  Rf1 {[%clk 0:00:44]} 69. b7 {[%clk 0:00:06]}  Rf8 {[%clk 0:00:45]} 70. Kc5 {[%clk 0:00:06]}  Rf5+ {[%clk 0:00:45]} 71. Kd6 {[%clk 0:00:07]}  Rf6+ {[%clk 0:00:45]} 72. Ke7 {[%clk 0:00:07]}  Rf5 {[%clk 0:00:43]} 73. b8=Q {[%clk 0:00:07]}  Re5+ {[%clk 0:00:44]} 74. Qxe5 {[%clk 0:00:06]} 1-0


[Site "https://www.chess.com"]

[Event "Titled Tuesday Blitz February 21 Early 2023"]
[White "Navara, David"]
[Black "Halkias, Stelios"]
[WhiteFideId "309095"]
[BlackFideId "4201809"]
[WhiteElo "2678"]
[BlackElo "2511"]
[Result "1-0"]
[Round "08"]
[TimeControl "180+2"]
[Date "2023.02.21"]
[WhiteClock "0:00:08"]
[BlackClock "0:00:07"]

1. d4 {[%clk 0:03:00]}  Nf6 {[%clk 0:02:57]} 2. c4 {[%clk 0:03:01]}  g6 {[%clk 0:02:57]} 3. Nc3 {[%clk 0:03:01]}  Bg7 {[%clk 0:02:56]} 4. e4 {[%clk 0:03:02]}  d6 {[%clk 0:02:57]} 5. Nf3 {[%clk 0:03:02]}  O-O {[%clk 0:02:56]} 6. Be2 {[%clk 0:03:03]}  e5 {[%clk 0:02:56]} 7. O-O {[%clk 0:03:04]}  h6 {[%clk 0:02:56]} 8. Re1 {[%clk 0:02:54]}  Nbd7 {[%clk 0:02:53]} 9. Bf1 {[%clk 0:02:53]}  Re8 {[%clk 0:02:47]} 10. d5 {[%clk 0:02:44]}  a5 {[%clk 0:02:44]} 11. b3 {[%clk 0:02:09]}  Nc5 {[%clk 0:02:41]} 12. Rb1 {[%clk 0:02:08]}  Nh7 {[%clk 0:02:24]} 13. a3 {[%clk 0:02:03]}  f5 {[%clk 0:02:24]} 14. b4 {[%clk 0:02:03]}  axb4 {[%clk 0:02:22]} 15. axb4 {[%clk 0:02:04]}  Nxe4 {[%clk 0:02:17]} 16. Nxe4 {[%clk 0:02:05]}  fxe4 {[%clk 0:02:18]} 17. Nd2 {[%clk 0:02:03]}  Nf6 {[%clk 0:02:16]} 18. h3 {[%clk 0:01:53]}  h5 {[%clk 0:02:13]} 19. Rb3 {[%clk 0:01:52]}  Bf5 {[%clk 0:02:11]} 20. c5 {[%clk 0:01:42]}  Ra1 {[%clk 0:02:04]} 21. Bc4 {[%clk 0:01:32]}  Kh8 {[%clk 0:02:03]} 22. Nf1 {[%clk 0:01:05]}  Rf8 {[%clk 0:01:50]} 23. Ra3 {[%clk 0:01:02]}  Rb1 {[%clk 0:01:17]} 24. Rb3 {[%clk 0:00:58]}  Ra1 {[%clk 0:01:14]} 25. Qd2 {[%clk 0:00:50]}  Ng8 {[%clk 0:00:51]} 26. Bb2 {[%clk 0:00:36]}  Bh6 {[%clk 0:00:45]} 27. Qe2 {[%clk 0:00:25]}  Rxe1 {[%clk 0:00:45]} 28. Qxe1 {[%clk 0:00:26]}  Ne7 {[%clk 0:00:42]} 29. Ng3 {[%clk 0:00:23]}  Qd7 {[%clk 0:00:33]} 30. Nxe4 {[%clk 0:00:22]}  Bxe4 {[%clk 0:00:20]} 31. Qxe4 {[%clk 0:00:23]}  Rf4 {[%clk 0:00:20]} 32. Qe2 {[%clk 0:00:21]}  Nf5 {[%clk 0:00:20]} 33. g3 {[%clk 0:00:09]}  Nd4 {[%clk 0:00:19]} 34. Qd1 {[%clk 0:00:07]}  Nxb3 {[%clk 0:00:16]} 35. gxf4 {[%clk 0:00:06]}  Nd4 {[%clk 0:00:15]} 36. fxe5 {[%clk 0:00:05]}  dxe5 {[%clk 0:00:15]} 37. Bxd4 {[%clk 0:00:06]}  exd4 {[%clk 0:00:15]} 38. Qxd4+ {[%clk 0:00:07]}  Bg7 {[%clk 0:00:15]} 39. Qd3 {[%clk 0:00:06]}  Qe7 {[%clk 0:00:14]} 40. Qxg6 {[%clk 0:00:06]}  Qe5 {[%clk 0:00:12]} 41. d6 {[%clk 0:00:04]}  cxd6 {[%clk 0:00:11]} 42. cxd6 {[%clk 0:00:05]}  Qe1+ {[%clk 0:00:10]} 43. Kg2 {[%clk 0:00:06]}  Qe5 {[%clk 0:00:08]} 44. d7 {[%clk 0:00:06]}  Qe7 {[%clk 0:00:08]} 45. Qxh5+ {[%clk 0:00:06]}  Bh6 {[%clk 0:00:08]} 46. Qxh6+ {[%clk 0:00:07]}  Qh7 {[%clk 0:00:07]} 47. d8=Q# {[%clk 0:00:08]} 1-0


[Site "https://www.chess.com"]